[Event "*** Titled Tuesday Blitz"]
[Site "Chess.com"]
[Date "2020.04.14"]
[Round "6"]
[White "Kimster98"]
[Black "CarlosAlbornoz"]
[Result "0-1"]
[WhiteElo "2540"]
[BlackElo "2717"]
[TimeControl "180+1"]
[EndTime "11:02:51 PDT"]
[Termination "CarlosAlbornoz won by resignation"]

1. d4 {[%clk 0:03:00.9]} 1... Nf6 {[%clk 0:02:59.8]} 2. Bf4 {[%clk 0:03:01.2]}
2... g6 {[%clk 0:02:59.7]} 3. Nc3 {[%clk 0:03:00.8]} 3... d5 {[%clk 0:02:59.2]}
4. e3 {[%clk 0:03:00.5]} 4... Bg7 {[%clk 0:02:58.4]} 5. h4 {[%clk 0:02:58.4]}
5... h5 {[%clk 0:02:56.2]} 6. Nf3 {[%clk 0:02:58.3]} 6... Bg4 {[%clk 0:02:54.7]}
7. Qd2 {[%clk 0:02:57.5]} 7... Bxf3 {[%clk 0:02:50.9]} 8. gxf3 {[%clk
0:02:58.4]} 8... O-O {[%clk 0:02:47.8]} 9. O-O-O {[%clk 0:02:37.8]} 9... Nbd7
{[%clk 0:02:44.1]} 10. e4 {[%clk 0:01:53.6]} 10... e6 {[%clk 0:02:43.5]} 11. Rg1
{[%clk 0:01:49.7]} 11... c5 {[%clk 0:02:39.3]} 12. dxc5 {[%clk 0:01:35.8]} 12...
Nxc5 {[%clk 0:02:38.2]} 13. exd5 {[%clk 0:01:35.8]} 13... Nxd5 {[%clk
0:02:32.5]} 14. Nxd5 {[%clk 0:01:33.6]} 14... exd5 {[%clk 0:02:33.4]} 15. Qxd5
{[%clk 0:01:30.4]} 15... Qf6 {[%clk 0:02:26.8]} 16. Be5 {[%clk 0:01:04.9]} 16...
Qxe5 {[%clk 0:02:24.4]} 17. Qxe5 {[%clk 0:01:05.3]} 17... Bxe5 {[%clk
0:02:24.4]} 18. Rd5 {[%clk 0:01:05.8]} 18... Bf4+ {[%clk 0:02:23.7]} 19. Kb1
{[%clk 0:01:05.8]} 19... Rfd8 {[%clk 0:02:20.3]} 20. Bc4 {[%clk 0:01:05.5]}
20... Rxd5 {[%clk 0:02:12]} 21. Bxd5 {[%clk 0:01:06.4]} 21... Rd8 {[%clk
0:02:02.5]} 22. c4 {[%clk 0:01:04.9]} 22... Kg7 {[%clk 0:01:55.4]} 23. Kc2
{[%clk 0:01:04.9]} 23... b6 {[%clk 0:01:54.3]} 24. b4 {[%clk 0:01:04]} 24... Ne6
{[%clk 0:01:53.5]} 25. Re1 {[%clk 0:00:55.8]} 25... Kf6 {[%clk 0:01:49]} 26. Kc3
{[%clk 0:00:49.7]} 26... Be5+ {[%clk 0:01:47.6]} 27. Kc2 {[%clk 0:00:46]} 27...
Nd4+ {[%clk 0:01:41.5]} 28. Kb1 {[%clk 0:00:46.3]} 28... Nf5 {[%clk 0:01:36.5]}
29. Re4 {[%clk 0:00:44.3]} 29... b5 {[%clk 0:01:23.2]} 30. f4 {[%clk 0:00:32.3]}
30... Bc7 {[%clk 0:01:19.5]} 31. Kc2 {[%clk 0:00:26]} 31... bxc4 {[%clk
0:01:19.4]} 32. Bxc4 {[%clk 0:00:26.2]} 32... Bb6 {[%clk 0:01:15.6]} 33. a4
{[%clk 0:00:21.2]} 33... Bxf2 {[%clk 0:01:12.6]} 34. a5 {[%clk 0:00:21.6]} 34...
Bxh4 {[%clk 0:01:10.7]} 35. b5 {[%clk 0:00:22]} 35... Bf2 {[%clk 0:01:10.5]} 36.
Re2 {[%clk 0:00:18.8]} 36... Nd4+ {[%clk 0:01:10.1]} 37. Kd3 {[%clk 0:00:18]}
37... Nxe2+ {[%clk 0:01:10.1]} 38. Kxe2 {[%clk 0:00:18.9]} 38... Bc5 {[%clk
0:01:09.7]} 39. b6 {[%clk 0:00:19.2]} 39... Bxb6 {[%clk 0:01:08.3]} 40. a6
{[%clk 0:00:20.1]} 0-1

[Event "*** Titled Tuesday Blitz"]
[Site "Chess.com"]
[Date "2020.04.14"]
[Round "6"]
[White "jonaszmb"]
[Black "avantage_ru"]
[Result "0-1"]
[WhiteElo "2411"]
[BlackElo "2581"]
[TimeControl "180+1"]
[EndTime "11:02:57 PDT"]
[Termination "avantage_ru won by resignation"]

1. e4 {[%clk 0:03:00.9]} 1... d6 {[%clk 0:02:59.2]} 2. d4 {[%clk 0:02:59.9]}
2... Nf6 {[%clk 0:02:59.3]} 3. f3 {[%clk 0:03:00.4]} 3... c5 {[%clk 0:02:58.1]}
4. d5 {[%clk 0:03:00.7]} 4... g6 {[%clk 0:02:57.1]} 5. c4 {[%clk 0:03:00.7]}
5... Bg7 {[%clk 0:02:57.1]} 6. Nc3 {[%clk 0:03:00.9]} 6... O-O {[%clk
0:02:56.9]} 7. Be3 {[%clk 0:03:01]} 7... e6 {[%clk 0:02:55.9]} 8. Qd2 {[%clk
0:02:29.1]} 8... exd5 {[%clk 0:02:55.5]} 9. cxd5 {[%clk 0:02:29.4]} 9... b6
{[%clk 0:02:54.8]} 10. Bh6 {[%clk 0:02:10]} 10... Nxe4 {[%clk 0:02:52.9]} 11.
Nxe4 {[%clk 0:01:57.9]} 11... Qh4+ {[%clk 0:02:52.7]} 12. g3 {[%clk 0:01:57]}
12... Qxh6 {[%clk 0:02:52.6]} 13. Qxh6 {[%clk 0:01:57.1]} 13... Bxh6 {[%clk
0:02:52.6]} 14. Nxd6 {[%clk 0:01:57.7]} 14... Nd7 {[%clk 0:02:47.9]} 15. f4
{[%clk 0:01:44.9]} 15... Nf6 {[%clk 0:02:44.5]} 16. Bg2 {[%clk 0:01:21.7]} 16...
Ba6 {[%clk 0:02:43.8]} 17. O-O-O {[%clk 0:01:02.7]} 17... Rad8 {[%clk
0:02:33.5]} 18. Ne4 {[%clk 0:01:02.7]} 18... Nxe4 {[%clk 0:02:30.2]} 19. Bxe4
{[%clk 0:01:03.6]} 19... Rfe8 {[%clk 0:02:29]} 20. Bg2 {[%clk 0:00:59.3]} 20...
Bg7 {[%clk 0:02:26.1]} 21. Nf3 {[%clk 0:00:42.7]} 21... Re2 {[%clk 0:02:18.7]}
22. Bf1 {[%clk 0:00:37.4]} 22... Bxb2+ {[%clk 0:02:18.2]} 23. Kb1 {[%clk
0:00:37.3]} 23... Bf6 {[%clk 0:02:17.7]} 24. Nd2 {[%clk 0:00:13.7]} 24... Rxd5
{[%clk 0:02:11.6]} 25. Bxe2 {[%clk 0:00:10.4]} 25... Bxe2 {[%clk 0:02:10.8]} 26.
Kc2 {[%clk 0:00:06.8]} 26... Bxd1+ {[%clk 0:02:05.7]} 27. Rxd1 {[%clk
0:00:07.7]} 27... Kf8 {[%clk 0:02:03.7]} 28. Re1 {[%clk 0:00:05]} 28... Be7
{[%clk 0:02:00.1]} 29. Nc4 {[%clk 0:00:04.6]} 29... f6 {[%clk 0:01:53.6]} 30. a3
{[%clk 0:00:03.9]} 30... b5 {[%clk 0:01:52.5]} 31. Ne3 {[%clk 0:00:04.2]} 31...
Rd4 {[%clk 0:01:52.2]} 32. Kb3 {[%clk 0:00:03.6]} 32... c4+ {[%clk 0:01:51.7]}
33. Kb2 {[%clk 0:00:01.9]} 33... Rd2+ {[%clk 0:01:50.8]} 34. Kc3 {[%clk
0:00:01.5]} 34... Rd3+ {[%clk 0:01:50]} 35. Kb2 {[%clk 0:00:01.3]} 35... Bxa3+
{[%clk 0:01:48.9]} 36. Kc2 {[%clk 0:00:01.6]} 36... Bc5 {[%clk 0:01:46.9]} 37.
Nd1 {[%clk 0:00:01.9]} 37... Kf7 {[%clk 0:01:44.9]} 38. Re2 {[%clk 0:00:02]}
38... a5 {[%clk 0:01:42.8]} 39. Nb2 {[%clk 0:00:02.4]} 39... Rd8 {[%clk
0:01:41.6]} 40. g4 {[%clk 0:00:02.7]} 40... a4 {[%clk 0:01:41.5]} 41. f5 {[%clk
0:00:02.8]} 41... gxf5 {[%clk 0:01:40.7]} 42. gxf5 {[%clk 0:00:03.7]} 42... a3
{[%clk 0:01:41]} 43. Nd1 {[%clk 0:00:04.1]} 43... b4 {[%clk 0:01:41.1]} 44. Re6
{[%clk 0:00:01.4]} 44... b3+ {[%clk 0:01:41.1]} 45. Kc3 {[%clk 0:00:01.9]} 45...
a2 {[%clk 0:01:39.2]} 46. h4 {[%clk 0:00:02.8]} 46... a1=Q+ {[%clk 0:01:38.7]}
47. Nb2 {[%clk 0:00:02.7]} 47... Bd4+ {[%clk 0:01:37.7]} 48. Kxc4 {[%clk
0:00:02.6]} 48... Qxb2 {[%clk 0:01:37.7]} 49. h5 {[%clk 0:00:03.2]} 49... Qc3+
{[%clk 0:01:37.3]} 50. Kb5 {[%clk 0:00:03.7]} 50... Rb8+ {[%clk 0:01:36.5]} 0-1

[Event "*** Titled Tuesday Blitz"]
[Site "Chess.com"]
[Date "2020.04.14"]
[Round "6"]
[White "BasilSmash"]
[Black "IljaZaragatski"]
[Result "1-0"]
[WhiteElo "2402"]
[BlackElo "2497"]
[TimeControl "180+1"]
[EndTime "11:02:57 PDT"]
[Termination "BasilSmash won by checkmate"]

1. d4 {[%clk 0:03:00.9]} 1... Nf6 {[%clk 0:02:59.8]} 2. Nf3 {[%clk 0:03:00.6]}
2... c5 {[%clk 0:03:00.1]} 3. d5 {[%clk 0:02:59.8]} 3... b5 {[%clk 0:03:00.4]}
4. c3 {[%clk 0:03:00.1]} 4... g6 {[%clk 0:02:57.4]} 5. e4 {[%clk 0:02:59.3]}
5... Nxe4 {[%clk 0:02:53.5]} 6. Bxb5 {[%clk 0:02:59]} 6... Bg7 {[%clk
0:02:50.3]} 7. O-O {[%clk 0:02:58.5]} 7... O-O {[%clk 0:02:48.9]} 8. Re1 {[%clk
0:02:57.4]} 8... Nf6 {[%clk 0:02:32.8]} 9. c4 {[%clk 0:02:57.3]} 9... d6 {[%clk
0:02:31]} 10. Nc3 {[%clk 0:02:56.8]} 10... Bd7 {[%clk 0:02:24.4]} 11. Bg5 {[%clk
0:02:38.8]} 11... a6 {[%clk 0:02:23.4]} 12. Ba4 {[%clk 0:02:37.6]} 12... Bxa4
{[%clk 0:02:22.7]} 13. Qxa4 {[%clk 0:02:34.5]} 13... Nbd7 {[%clk 0:02:22.9]} 14.
Qc2 {[%clk 0:02:32.1]} 14... Rb8 {[%clk 0:02:22.1]} 15. Re2 {[%clk 0:02:25.4]}
15... Re8 {[%clk 0:02:16.5]} 16. Rae1 {[%clk 0:02:24]} 16... Rb7 {[%clk
0:02:02.4]} 17. h3 {[%clk 0:02:19.6]} 17... Kf8 {[%clk 0:01:58]} 18. b3 {[%clk
0:02:13.3]} 18... Qa5 {[%clk 0:01:48.3]} 19. Bd2 {[%clk 0:02:05.4]} 19... Qc7
{[%clk 0:01:45.9]} 20. Ng5 {[%clk 0:01:59.1]} 20... h6 {[%clk 0:01:15.8]} 21.
Ne6+ {[%clk 0:01:40.4]} 21... fxe6 {[%clk 0:01:14]} 22. dxe6 {[%clk 0:01:40.3]}
22... Kg8 {[%clk 0:00:29]} 23. Qxg6 {[%clk 0:01:11]} 23... Nf8 {[%clk
0:00:28.5]} 24. Qf7+ {[%clk 0:01:10.8]} 24... Kh8 {[%clk 0:00:24.3]} 25. Ne4
{[%clk 0:01:06]} 25... Nxe4 {[%clk 0:00:22]} 26. Rxe4 {[%clk 0:01:06.9]} 26...
Qc8 {[%clk 0:00:18.6]} 27. Rg4 {[%clk 0:00:54.9]} 27... Ng6 {[%clk 0:00:07.8]}
28. Qxg6 {[%clk 0:00:37.5]} 28... Rg8 {[%clk 0:00:06.5]} 29. Bxh6 {[%clk
0:00:36.2]} 29... Bxh6 {[%clk 0:00:06.8]} 30. Qxh6# {[%clk 0:00:35.8]} 1-0

[Event "*** Titled Tuesday Blitz"]
[Site "Chess.com"]
[Date "2020.04.14"]
[Round "6"]
[White "JozefKneht"]
[Black "2nd_life"]
[Result "1-0"]
[WhiteElo "2600"]
[BlackElo "2419"]
[TimeControl "180+1"]
[EndTime "11:02:58 PDT"]
[Termination "JozefKneht won on time"]

1. e4 {[%clk 0:03:00.9]} 1... e5 {[%clk 0:02:59.5]} 2. Nf3 {[%clk 0:03:00.2]}
2... Nc6 {[%clk 0:02:59.5]} 3. Bb5 {[%clk 0:02:59.2]} 3... a6 {[%clk 0:02:59]}
4. Ba4 {[%clk 0:02:59]} 4... Nf6 {[%clk 0:02:58.9]} 5. O-O {[%clk 0:02:58.1]}
5... Be7 {[%clk 0:02:58.8]} 6. Re1 {[%clk 0:02:57.4]} 6... b5 {[%clk 0:02:59]}
7. Bb3 {[%clk 0:02:57.2]} 7... d6 {[%clk 0:02:59.6]} 8. c3 {[%clk 0:02:57.6]}
8... O-O {[%clk 0:02:58.9]} 9. h3 {[%clk 0:02:58.1]} 9... Bb7 {[%clk 0:02:58.9]}
10. d4 {[%clk 0:02:58.1]} 10... Re8 {[%clk 0:02:59.1]} 11. Nbd2 {[%clk
0:02:58.4]} 11... Bf8 {[%clk 0:02:59.3]} 12. a4 {[%clk 0:02:57.4]} 12... h6
{[%clk 0:02:59.1]} 13. Bc2 {[%clk 0:02:57.3]} 13... exd4 {[%clk 0:02:59.1]} 14.
cxd4 {[%clk 0:02:58.2]} 14... Nb4 {[%clk 0:02:59]} 15. Bb1 {[%clk 0:02:58.5]}
15... c5 {[%clk 0:02:58.6]} 16. d5 {[%clk 0:02:59]} 16... Nd7 {[%clk 0:02:58.4]}
17. Ra3 {[%clk 0:02:59.4]} 17... c4 {[%clk 0:02:52.3]} 18. Nd4 {[%clk
0:02:53.1]} 18... Qb6 {[%clk 0:02:35.9]} 19. Nf5 {[%clk 0:02:49.7]} 19... g6
{[%clk 0:02:25.7]} 20. Rg3 {[%clk 0:02:47.3]} 20... Ne5 {[%clk 0:02:17.6]} 21.
Nf3 {[%clk 0:02:32.8]} 21... Nbd3 {[%clk 0:01:59.4]} 22. Be3 {[%clk 0:02:19.7]}
22... Nxf3+ {[%clk 0:01:19.2]} 23. gxf3 {[%clk 0:01:44.1]} 23... Qa5 {[%clk
0:01:18.8]} 24. Bxd3 {[%clk 0:01:42.9]} 24... cxd3 {[%clk 0:01:16.4]} 25. Nxh6+
{[%clk 0:01:37.9]} 25... Bxh6 {[%clk 0:00:53.8]} 26. Bxh6 {[%clk 0:01:34.7]}
26... Bxd5 {[%clk 0:00:53.8]} 27. Bd2 {[%clk 0:01:34.3]} 27... Qxa4 {[%clk
0:00:18.2]} 28. exd5 {[%clk 0:01:32.4]} 28... Re2 {[%clk 0:00:09.6]} 29. Qxa4
{[%clk 0:01:14.3]} 29... bxa4 {[%clk 0:00:09.5]} 30. Rxe2 {[%clk 0:01:13.1]}
30... dxe2 {[%clk 0:00:09.4]} 31. f4 {[%clk 0:01:13.6]} 31... Rb8 {[%clk
0:00:05.5]} 32. Re3 {[%clk 0:01:11.1]} 32... Rxb2 {[%clk 0:00:03.6]} 33. Rxe2
{[%clk 0:01:06.9]} 33... Kh7 {[%clk 0:00:01.4]} 34. Kf1 {[%clk 0:01:03.6]} 34...
a3 {[%clk 0:00:01.5]} 35. Bc3 {[%clk 0:01:03.6]} 35... Rb3 {[%clk 0:00:01.7]}
36. Bf6 {[%clk 0:00:57.5]} 1-0

[Event "*** Titled Tuesday Blitz"]
[Site "Chess.com"]
[Date "2020.04.14"]
[Round "6"]
[White "jposthuma"]
[Black "Everyfishknows"]
[Result "1-0"]
[WhiteElo "2577"]
[BlackElo "2354"]
[TimeControl "180+1"]
[EndTime "11:02:59 PDT"]
[Termination "jposthuma won on time"]

1. d4 {[%clk 0:03:00.9]} 1... Nf6 {[%clk 0:02:53.6]} 2. c4 {[%clk 0:03:00.9]}
2... e6 {[%clk 0:02:53.4]} 3. g3 {[%clk 0:03:01]} 3... Bb4+ {[%clk 0:02:53.7]}
4. Nd2 {[%clk 0:03:01]} 4... O-O {[%clk 0:02:53.6]} 5. Bg2 {[%clk 0:03:01.6]}
5... d5 {[%clk 0:02:43.2]} 6. Nf3 {[%clk 0:03:00.1]} 6... Nbd7 {[%clk
0:02:26.8]} 7. O-O {[%clk 0:02:59.4]} 7... b6 {[%clk 0:02:22.2]} 8. cxd5 {[%clk
0:02:59]} 8... exd5 {[%clk 0:02:21.6]} 9. Ne5 {[%clk 0:02:54.3]} 9... Bb7 {[%clk
0:02:21.1]} 10. Ndf3 {[%clk 0:02:49.2]} 10... Bd6 {[%clk 0:02:10.8]} 11. Bf4
{[%clk 0:02:47.1]} 11... Nh5 {[%clk 0:01:54.9]} 12. Nxd7 {[%clk 0:02:45.1]}
12... Qxd7 {[%clk 0:01:13.1]} 13. Bxd6 {[%clk 0:02:43.5]} 13... Qxd6 {[%clk
0:01:14]} 14. Rc1 {[%clk 0:02:42.6]} 14... Nf6 {[%clk 0:01:11.1]} 15. Qc2 {[%clk
0:02:31.1]} 15... Rac8 {[%clk 0:01:09.4]} 16. Rfd1 {[%clk 0:02:26.3]} 16... c5
{[%clk 0:01:08.7]} 17. Qa4 {[%clk 0:02:17]} 17... a6 {[%clk 0:00:45]} 18. dxc5
{[%clk 0:02:16.1]} 18... bxc5 {[%clk 0:00:43.9]} 19. Qa5 {[%clk 0:01:47]} 19...
Rfd8 {[%clk 0:00:26.6]} 20. Rc2 {[%clk 0:01:39.2]} 20... d4 {[%clk 0:00:23]} 21.
Rdc1 {[%clk 0:01:19.4]} 21... Nd7 {[%clk 0:00:20.4]} 22. b4 {[%clk 0:00:28.5]}
22... Be4 {[%clk 0:00:13.5]} 23. bxc5 {[%clk 0:00:28.3]} 23... Qd5 {[%clk
0:00:13.6]} 24. Rd2 {[%clk 0:00:25.9]} 24... Nxc5 {[%clk 0:00:10.8]} 25. Rxd4
{[%clk 0:00:23.1]} 1-0

[Event "*** Titled Tuesday Blitz"]
[Site "Chess.com"]
[Date "2020.04.14"]
[Round "6"]
[White "Vincent_Vega95"]
[Black "TheCount"]
[Result "1-0"]
[WhiteElo "2778"]
[BlackElo "2599"]
[TimeControl "180+1"]
[EndTime "11:03:00 PDT"]
[Termination "Vincent_Vega95 won on time"]

1. Nf3 {[%clk 0:02:58.8]} 1... Nf6 {[%clk 0:02:57.1]} 2. c4 {[%clk 0:02:58.7]}
2... g6 {[%clk 0:02:52.9]} 3. Nc3 {[%clk 0:02:59.2]} 3... d5 {[%clk 0:02:53.2]}
4. d4 {[%clk 0:02:59.2]} 4... Bg7 {[%clk 0:02:53]} 5. cxd5 {[%clk 0:02:59.4]}
5... Nxd5 {[%clk 0:02:53.9]} 6. e4 {[%clk 0:02:59.9]} 6... Nxc3 {[%clk
0:02:53.9]} 7. bxc3 {[%clk 0:03:00.8]} 7... c5 {[%clk 0:02:53.6]} 8. Be3 {[%clk
0:03:01.1]} 8... Nc6 {[%clk 0:02:52.7]} 9. Qd2 {[%clk 0:03:01.2]} 9... Qa5
{[%clk 0:02:46.5]} 10. Rc1 {[%clk 0:03:00.6]} 10... cxd4 {[%clk 0:02:41.9]} 11.
cxd4 {[%clk 0:03:00.6]} 11... O-O {[%clk 0:02:42.6]} 12. Qxa5 {[%clk 0:02:53.4]}
12... Nxa5 {[%clk 0:02:42.4]} 13. Be2 {[%clk 0:02:39.4]} 13... f5 {[%clk
0:02:19.1]} 14. O-O {[%clk 0:02:12]} 14... fxe4 {[%clk 0:02:10.1]} 15. Ng5
{[%clk 0:02:07.7]} 15... Bf5 {[%clk 0:02:10]} 16. g4 {[%clk 0:02:05.1]} 16...
Bd7 {[%clk 0:02:05.3]} 17. Nxe4 {[%clk 0:01:53.9]} 17... Bc6 {[%clk 0:01:48.5]}
18. Ng5 {[%clk 0:01:49.9]} 18... Rfc8 {[%clk 0:01:19.2]} 19. Bd2 {[%clk
0:01:33.3]} 19... b6 {[%clk 0:00:43.7]} 20. Bxa5 {[%clk 0:01:31.6]} 20... bxa5
{[%clk 0:00:43.9]} 21. Bc4+ {[%clk 0:01:31.1]} 21... Kf8 {[%clk 0:00:33.8]} 22.
Ne6+ {[%clk 0:01:31.4]} 22... Kf7 {[%clk 0:00:30.9]} 23. Nc7+ {[%clk 0:01:31.5]}
23... Kf6 {[%clk 0:00:29.1]} 24. Nxa8 {[%clk 0:01:26.6]} 24... Bxa8 {[%clk
0:00:23.2]} 25. Ba6 {[%clk 0:01:24.9]} 25... Rd8 {[%clk 0:00:22.4]} 26. Rc8
{[%clk 0:01:24.4]} 26... Rxc8 {[%clk 0:00:20.4]} 27. Bxc8 {[%clk 0:01:25.3]}
27... Kg5 {[%clk 0:00:20.3]} 28. Re1 {[%clk 0:01:20.4]} 28... Bf6 {[%clk
0:00:17.6]} 29. Be6 {[%clk 0:00:38.3]} 29... Bxd4 {[%clk 0:00:13.1]} 30. Rd1
{[%clk 0:00:38.6]} 30... Bc5 {[%clk 0:00:10]} 31. Bd5 {[%clk 0:00:38.5]} 1-0

[Event "*** Titled Tuesday Blitz"]
[Site "Chess.com"]
[Date "2020.04.14"]
[Round "6"]
[White "Etoilegeniale"]
[Black "BabyFacedAssasin"]
[Result "1-0"]
[WhiteElo "2513"]
[BlackElo "2283"]
[TimeControl "180+1"]
[EndTime "11:03:00 PDT"]
[Termination "Etoilegeniale won by resignation"]

1. e4 {[%clk 0:03:00.9]} 1... e6 {[%clk 0:02:59.6]} 2. d4 {[%clk 0:03:00.1]}
2... d5 {[%clk 0:03:00.1]} 3. Nd2 {[%clk 0:02:58.9]} 3... c5 {[%clk 0:02:59.7]}
4. exd5 {[%clk 0:02:58.3]} 4... Qxd5 {[%clk 0:03:00.3]} 5. Ngf3 {[%clk 0:02:58]}
5... cxd4 {[%clk 0:03:00.4]} 6. Bc4 {[%clk 0:02:57.7]} 6... Qd8 {[%clk
0:03:00.9]} 7. O-O {[%clk 0:02:56.8]} 7... Nc6 {[%clk 0:02:59.5]} 8. Nb3 {[%clk
0:02:56.7]} 8... a6 {[%clk 0:02:59.2]} 9. Nbxd4 {[%clk 0:02:56.7]} 9... Nxd4
{[%clk 0:02:59.7]} 10. Nxd4 {[%clk 0:02:57.1]} 10... Qc7 {[%clk 0:03:00.2]} 11.
Qe2 {[%clk 0:02:55.9]} 11... Bd6 {[%clk 0:02:59.4]} 12. h3 {[%clk 0:02:37.3]}
12... Ne7 {[%clk 0:02:58.1]} 13. b3 {[%clk 0:02:35.1]} 13... b5 {[%clk
0:02:54.4]} 14. Bd3 {[%clk 0:02:34.3]} 14... Bb7 {[%clk 0:02:45.6]} 15. Bb2
{[%clk 0:02:32.5]} 15... e5 {[%clk 0:02:40.8]} 16. Nf3 {[%clk 0:02:27.5]} 16...
O-O {[%clk 0:02:36.5]} 17. Nxe5 {[%clk 0:02:23]} 17... Rae8 {[%clk 0:02:28.4]}
18. f4 {[%clk 0:01:43.1]} 18... Nc6 {[%clk 0:02:02.7]} 19. Qh5 {[%clk
0:01:09.4]} 19... g6 {[%clk 0:01:36.4]} 20. Ng4 {[%clk 0:01:08.6]} 20... Bc5+
{[%clk 0:01:13.7]} 21. Kh1 {[%clk 0:01:04.9]} 21... Bd4 {[%clk 0:01:09.7]} 22.
Bxd4 {[%clk 0:01:03.8]} 22... Nxd4 {[%clk 0:01:06]} 23. Nf6+ {[%clk 0:01:03.2]}
23... Kg7 {[%clk 0:01:02.8]} 24. Nxe8+ {[%clk 0:00:47.4]} 24... Rxe8 {[%clk
0:01:01.5]} 25. Qg4 {[%clk 0:00:46.2]} 25... h5 {[%clk 0:00:54.9]} 26. Qg3
{[%clk 0:00:41.8]} 26... h4 {[%clk 0:00:44.1]} 27. Qf2 {[%clk 0:00:40.5]} 27...
Qd7 {[%clk 0:00:37.3]} 28. f5 {[%clk 0:00:39.3]} 28... g5 {[%clk 0:00:22.6]} 29.
Rae1 {[%clk 0:00:38.7]} 29... f6 {[%clk 0:00:20.7]} 30. Rxe8 {[%clk 0:00:37.4]}
30... Qxe8 {[%clk 0:00:18]} 31. Qxd4 {[%clk 0:00:37]} 31... Qc6 {[%clk
0:00:15.9]} 32. Qf2 {[%clk 0:00:36]} 32... Qd5 {[%clk 0:00:15.7]} 33. Re1 {[%clk
0:00:35.5]} 33... Kf7 {[%clk 0:00:14.7]} 34. Be4 {[%clk 0:00:34.8]} 1-0

[Event "*** Titled Tuesday Blitz"]
[Site "Chess.com"]
[Date "2020.04.14"]
[Round "6"]
[White "Treacherous_horse64"]
[Black "GrafLermontov"]
[Result "0-1"]
[WhiteElo "2199"]
[BlackElo "2390"]
[TimeControl "180+1"]
[EndTime "11:03:00 PDT"]
[Termination "GrafLermontov won by resignation"]

1. Nf3 {[%clk 0:03:00]} 1... c5 {[%clk 0:02:59.4]} 2. d4 {[%clk 0:03:00.8]} 2...
cxd4 {[%clk 0:02:59.1]} 3. Nxd4 {[%clk 0:03:00.8]} 3... Nc6 {[%clk 0:02:59.3]}
4. Nb3 {[%clk 0:03:00.6]} 4... g6 {[%clk 0:02:58.3]} 5. c4 {[%clk 0:03:00.5]}
5... Bg7 {[%clk 0:02:58.7]} 6. Nc3 {[%clk 0:03:00.7]} 6... Nf6 {[%clk
0:02:58.2]} 7. e3 {[%clk 0:02:59.4]} 7... O-O {[%clk 0:02:58.7]} 8. Be2 {[%clk
0:02:50.2]} 8... d6 {[%clk 0:02:56.9]} 9. O-O {[%clk 0:02:49.7]} 9... Bd7 {[%clk
0:02:56.3]} 10. Nd4 {[%clk 0:02:49.4]} 10... Rc8 {[%clk 0:02:56]} 11. b3 {[%clk
0:02:49.6]} 11... a6 {[%clk 0:02:47.8]} 12. Bb2 {[%clk 0:02:49.7]} 12... Qa5
{[%clk 0:02:46.6]} 13. Rc1 {[%clk 0:02:45.3]} 13... Ne5 {[%clk 0:02:18.9]} 14.
Qd2 {[%clk 0:02:39.7]} 14... Kh8 {[%clk 0:02:13.9]} 15. Rfd1 {[%clk 0:02:39.6]}
15... b5 {[%clk 0:02:05.3]} 16. Qe1 {[%clk 0:02:40.5]} 16... bxc4 {[%clk
0:02:03.6]} 17. bxc4 {[%clk 0:02:03.6]} 17... Nxc4 {[%clk 0:02:00]} 18. Ba1
{[%clk 0:02:01.3]} 18... Ne5 {[%clk 0:01:57.2]} 19. a4 {[%clk 0:01:40.7]} 19...
Rb8 {[%clk 0:01:49.7]} 20. Qd2 {[%clk 0:01:35.4]} 20... Rfc8 {[%clk 0:01:48.8]}
21. Qa2 {[%clk 0:01:33.5]} 21... e6 {[%clk 0:01:36.2]} 22. Nf3 {[%clk
0:01:28.5]} 22... Nxf3+ {[%clk 0:01:33.9]} 23. Bxf3 {[%clk 0:01:29.4]} 23... d5
{[%clk 0:01:34.4]} 24. Rb1 {[%clk 0:01:24.9]} 24... h5 {[%clk 0:01:23.5]} 25.
Rdc1 {[%clk 0:01:11.5]} 25... Rxb1 {[%clk 0:01:03.6]} 26. Qxb1 {[%clk
0:01:08.6]} 26... Ng4 {[%clk 0:00:43.3]} 27. Qb7 {[%clk 0:00:42.8]} 27... Rc7
{[%clk 0:00:42.8]} 28. Qb8+ {[%clk 0:00:42.1]} 28... Kh7 {[%clk 0:00:43.3]} 29.
Qd8 {[%clk 0:00:31.4]} 29... Rxc3 {[%clk 0:00:32.6]} 0-1